Workbook

Sheet Orçamento de Marketing de Canal
B1: ORÇAMENTO DE MARKETING DE CANAL
C2: Taxa | D2: Mês 1 | E2: Mês 2 | F2: Mês 3 | G2: Mês 4 | H2: Mês 5 | I2: Mês 6 | J2: Mês 7 | K2: Mês 8 | L2: Mês 9 | M2: Mês 10 | N2: Mês 11 | O2: Mês 12 | Q2: Total
B3: TOTAL DAS VENDAS ANTECIPADAS R$(000) | D3: 750 | E3: 200 | F3: 500 | G3: 1,500 | H3: 1,200 | I3: 1,500 | J3: 1,500 | K3: 1,800 | L3: 2,000 | M3: 2,000 | N3: 2,000 | O3: 2,000 | Q3: =SUM(D3:O3) -> 16,950
B4: PESSOAL (% DAS VENDAS TOTAIS) | D4: =D9+D28+D35+D41 -> 110% | E4: 110% | F4: 110% | G4: 110% | H4: 110% | I4: 110% | J4: 110% | K4: 110% | L4: 85% | M4: 85% | N4: 85% | O4: 85%
B5: Recursos Humanos - Contagem de Funcionários | C5: 5 | D5: =+$C$5 -> 5 | E5: 5 | F5: 5 | G5: 5 | H5: 5 | I5: 5 | J5: 5 | K5: 5 | L5: 5 | M5: 5 | N5: 5 | O5: 5
B6: Recursos Humanos - Custo | D6: =$C$5*D5 -> 25.00 | E6: 25.00 | F6: 25.00 | G6: 25.00 | H6: 25.00 | I6: 25.00 | J6: 25.00 | K6: 25.00 | L6: 25.00 | M6: 25.00 | N6: 25.00 | O6: 25.00 | Q6: =SUM('Orçamento de Marketing de Canal'!$D6:$O6) -> 300.00
B7: Comissão | C7: 0.10% | D7: =D3*$C$7 -> 0.75 | E7: 0.20 | F7: 0.50 | G7: 1.50 | H7: 1.20 | I7: 1.50 | J7: 1.50 | K7: 1.80 | L7: 2.00 | M7: 2.00 | N7: 2.00 | O7: 2.00 | Q7: =SUM('Orçamento de Marketing de Canal'!$D7:$O7) -> 16.95
B8: Total para Pessoal R$(000) | D8: =SUM(D6:D7) -> 25.75 | E8: 25.20 | F8: 25.50 | G8: 26.50 | H8: 26.20 | I8: 26.50 | J8: 26.50 | K8: 26.80 | L8: 27.00 | M8: 27.00 | N8: 27.00 | O8: 27.00 | Q8: =SUM('Orçamento de Marketing de Canal'!$D8:$O8) -> 316.95
B9: MARKETING DIRETO (% DAS VENDAS TOTAIS) | D9: 100% | E9: 100% | F9: 75% | G9: 40% | H9: 33% | I9: 25% | J9: 20% | K9: 10% | L9: 5% | M9: 5% | N9: 5% | O9: 5%
B10: Telemarketing (% das Vendas Diretas) | D10: 100% | E10: 50% | F10: 50% | G10: 50% | H10: 50% | I10: 50% | J10: 50% | K10: 50% | L10: 50% | M10: 50% | N10: 50% | O10: 50%
B11: Recursos Humanos - Contagem de Funcionários | C11: 3 | D11: =$C$11*D10 -> 3 | E11: 1.5 | F11: 1.5 | G11: 1.5 | H11: 1.5 | I11: 1.5 | J11: 1.5 | K11: 1.5 | L11: 1.5 | M11: 1.5 | N11: 1.5 | O11: 1.5 | Q11: =SUM('Orçamento de Marketing de Canal'!$D11:$O11) -> 19.50
B12: Suporte à Infraestrutura | D12: 25 | E12: 10 | F12: 25 | G12: 10 | H12: 25 | I12: 10 | J12: 25 | K12: 10 | L12: 25 | M12: 10 | N12: 25 | O12: 10 | Q12: =SUM('Orçamento de Marketing de Canal'!$D12:$O12) -> 210.00
B13: Comissão | C13: 0.10% | D13: =$C$13*D3*D9*D10 -> 0.75 | E13: 0.10 | F13: 0.19 | G13: 0.30 | H13: 0.20 | I13: 0.19 | J13: 0.15 | K13: 0.09 | L13: 0.05 | M13: 0.05 | N13: 0.05 | O13: 0.05 | Q13: =SUM('Orçamento de Marketing de Canal'!$D13:$O13) -> 2.16
B14: Treinamento | D14: 25 | E14: 10 | F14: 25 | G14: 10 | H14: 25 | I14: 10 | J14: 25 | K14: 10 | L14: 25 | M14: 10 | N14: 25 | O14: 10 | Q14: =SUM('Orçamento de Marketing de Canal'!$D14:$O14) -> 210.00
B15: Total para Telemarketing R$(000) | D15: =SUM(D11:D14) -> 53.75 | E15: 21.60 | F15: 51.69 | G15: 21.80 | H15: 51.70 | I15: 21.69 | J15: 51.65 | K15: 21.59 | L15: 51.55 | M15: 21.55 | N15: 51.55 | O15: 21.55 | Q15: =SUM('Orçamento de Marketing de Canal'!$D15:$O15) -> 441.66
B16: Marketing de Internet (% das Vendas Diretas) | D16: 25% | E16: 25% | F16: 25% | G16: 25% | H16: 25% | I16: 25% | J16: 25% | K16: 25% | L16: 25% | M16: 25% | N16: 25% | O16: 25%
B17: Recursos Humanos - Contagem de Funcionários | C17: 1 | D17: =$C$17*D16 -> 0.25 | E17: 0.25 | F17: 0.25 | G17: 0.25 | H17: 0.25 | I17: 0.25 | J17: 0.25 | K17: 0.25 | L17: 0.25 | M17: 0.25 | N17: 0.25 | O17: 0.25 | Q17: =SUM('Orçamento de Marketing de Canal'!$D17:$O17) -> 3.00
B18: Desenvolvimento de Site (custo único) | D18: 500 | Q18: =SUM('Orçamento de Marketing de Canal'!$D18:$O18) -> 500.00
B19: Hospedagem | D19: 10 | E19: 10 | F19: 10 | G19: 10 | H19: 10 | I19: 10 | J19: 10 | K19: 10 | L19: 10 | M19: 10 | N19: 10 | O19: 10 | Q19: =SUM('Orçamento de Marketing de Canal'!$D19:$O19) -> 120.00
B20: Suporte e Manutenção | D20: 25 | N20: 25 | Q20: =SUM('Orçamento de Marketing de Canal'!$D20:$O20) -> 50.00
B21: Total de Marketing da Internet R$(000) | D21: =SUM(D17:D20) -> 535.25 | E21: =SUM(E17:E20) -> 10.25 | F21: 10.25 | G21: 10.25 | H21: 10.25 | I21: 10.25 | J21: 10.25 | K21: 10.25 | L21: 10.25 | M21: 10.25 | N21: 35.25 | O21: 10.25 | Q21: =SUM('Orçamento de Marketing de Canal'!$D21:$O21) -> 673.00
B22: Mala Direta(% das Vendas Diretas)
B23: Recursos Humanos - Custo | Q23: =SUM('Orçamento de Marketing de Canal'!$D23:$O23) -> 0.00
B24: Material | D24: 1000 | E24: 1000 | F24: 1000 | G24: 1000 | H24: 1000 | I24: 1000 | J24: 1000 | K24: 1000 | L24: 1000 | M24: 1000 | N24: 1000 | O24: 1000 | Q24: =SUM('Orçamento de Marketing de Canal'!$D24:$O24) -> 12,000.00
B25: Postagem | D25: 250 | E25: 250 | F25: 250 | G25: 250 | H25: 250 | I25: 250 | J25: 250 | K25: 250 | L25: 250 | M25: 250 | N25: 250 | O25: 250 | Q25: =SUM('Orçamento de Marketing de Canal'!$D25:$O25) -> 3,000.00
B26: Total de Mala Direta R$(000) | D26: =SUM(D23:D25) -> 1,250.00 | E26: =SUM(E23:E25) -> 1,250.00 | F26: 1,250.00 | G26: 1,250.00 | H26: 1,250.00 | I26: 1,250.00 | J26: 1,250.00 | K26: 1,250.00 | L26: 1,250.00 | M26: 1,250.00 | N26: 1,250.00 | O26: 1,250.00 | Q26: 15,000.00
B27: Total de Marketing Direto R$(000) | D27: =SUM(D15,D21,D26) -> 1,839.00 | E27: 1,281.85 | F27: 1,311.94 | G27: 1,282.05 | H27: 1,311.95 | I27: 1,281.94 | J27: 1,311.90 | K27: 1,281.84 | L27: 1,311.80 | M27: 1,281.80 | N27: 1,336.80 | O27: 1,281.80 | Q27: =SUM(Q15,Q21,Q26) -> 16,114.66
B28: AGENTE/CORRETOR (% DAS VENDAS TOTAIS) | D28: 10% | E28: 10% | F28: 10% | G28: 10% | H28: 10% | I28: 10% | J28: 10% | K28: 10% | L28: 10% | M28: 10% | N28: 10% | O28: 10%
B29: Comunicação | D29: 50 | E29: 50 | F29: 50 | G29: 50 | H29: 50 | I29: 50 | J29: 50 | K29: 50 | L29: 50 | M29: 50 | N29: 50 | O29: 50 | Q29: =SUM('Orçamento de Marketing de Canal'!$D29:$O29) -> 600.00
B30: Treinamento | D30: 250.00 | E30: 250.00 | F30: 250.00 | G30: 250.00 | H30: 250.00 | I30: 250.00 | J30: 250.00 | K30: 250.00 | L30: 250.00 | M30: 250.00 | N30: 250.00 | O30: 250.00 | Q30: =SUM('Orçamento de Marketing de Canal'!$D30:$O30) -> 3,000.00
B31: Promoções | D31: 600.00 | E31: 600.00 | F31: 600.00 | G31: 600.00 | H31: 600.00 | I31: 600.00 | J31: 600.00 | K31: 600.00 | L31: 600.00 | M31: 600.00 | N31: 600.00 | O31: 600.00 | Q31: =SUM('Orçamento de Marketing de Canal'!$D31:$O31) -> 7,200.00
B32: Descontos | C32: 10.00% | D32: =D3*D28*$C$32 -> 7.50 | E32: 2.00 | F32: 5.00 | G32: 15.00 | H32: 12.00 | I32: 15.00 | J32: 15.00 | K32: 18.00 | L32: 20.00 | M32: 20.00 | N32: 20.00 | O32: 20.00 | Q32: =SUM('Orçamento de Marketing de Canal'!$D32:$O32) -> 169.50
B33: Comissão (% das Vendas do Agente) | C33: 10.00% | D33: =D3*D28*$C$33 -> 7.50 | E33: 2.00 | F33: 5.00 | G33: 15.00 | H33: 12.00 | I33: 15.00 | J33: 15.00 | K33: 18.00 | L33: 20.00 | M33: 20.00 | N33: 20.00 | O33: 20.00 | Q33: =SUM('Orçamento de Marketing de Canal'!$D33:$O33) -> 169.50
B34: Total do Agente/Corretor R$(000) | D34: =SUM(D29:D33) -> 915.00 | E34: =SUM(E29:E33) -> 904.00 | F34: 910.00 | G34: 930.00 | H34: 924.00 | I34: 930.00 | J34: 930.00 | K34: 936.00 | L34: 940.00 | M34: 940.00 | N34: 940.00 | O34: 940.00 | Q34: 11,139.00
B35: DISTRIBUIDORES (% DAS VENDAS TOTAIS) | D35: 0% | E35: 0% | F35: 0% | G35: 0% | H35: 0% | I35: 15% | J35: 20% | K35: 40% | L35: 40% | M35: 40% | N35: 40% | O35: 40%
B36: Comunicação | D36: 50 | E36: 50 | F36: 50 | G36: 50 | H36: 50 | I36: 50 | J36: 50 | K36: 50 | L36: 50 | M36: 50 | N36: 50 | O36: 50 | Q36: =SUM('Orçamento de Marketing de Canal'!$D36:$O36) -> 600.00
B37: Treinamento | D37: 250.00 | E37: 250.00 | F37: 250.00 | G37: 250.00 | H37: 250.00 | I37: 250.00 | J37: 250.00 | K37: 250.00 | L37: 250.00 | M37: 250.00 | N37: 250.00 | O37: 250.00 | Q37: =SUM('Orçamento de Marketing de Canal'!$D37:$O37) -> 3,000.00
B38: Promoções | D38: 600.00 | E38: 600.00 | F38: 600.00 | G38: 600.00 | H38: 600.00 | I38: 600.00 | J38: 600.00 | K38: 600.00 | L38: 600.00 | M38: 600.00 | N38: 600.00 | O38: 600.00 | Q38: =SUM('Orçamento de Marketing de Canal'!$D38:$O38) -> 7,200.00
B39: Comissão/Descontos (% das Vendas dos Distribuidores) | C39: 15.00% | D39: =D3*D35*$C$39 -> 0 | E39: 0 | F39: 0 | G39: 0 | H39: 0 | I39: 33.75 | J39: 45 | K39: 108 | L39: 120 | M39: 120 | N39: 120 | O39: 120 | Q39: =SUM('Orçamento de Marketing de Canal'!$D39:$O39) -> 666.75
B40: Total do Distribuidor R$(000) | D40: =SUM(D36:D39) -> 900.00 | E40: 900.00 | F40: 900.00 | G40: 900.00 | H40: 900.00 | I40: 933.75 | J40: 945.00 | K40: 1,008.00 | L40: 1,020.00 | M40: 1,020.00 | N40: 1,020.00 | O40: 1,020.00 | Q40: 11,466.75
B41: REVENDEDOR (% DAS VENDAS TOTAIS) | D41: 0% | E41: 0% | F41: 25% | G41: 60% | H41: 67% | I41: 60% | J41: 60% | K41: 50% | L41: 30% | M41: 30% | N41: 30% | O41: 30%
B42: Comunicação | D42: 50 | E42: 50 | F42: 50 | G42: 50 | H42: 50 | I42: 50 | J42: 50 | K42: 50 | L42: 50 | M42: 50 | N42: 50 | O42: 50 | Q42: =SUM('Orçamento de Marketing de Canal'!$D42:$O42) -> 600.00
B43: Treinamento | D43: 250.00 | E43: 250.00 | F43: 250.00 | G43: 250.00 | H43: 250.00 | I43: 250.00 | J43: 250.00 | K43: 250.00 | L43: 250.00 | M43: 250.00 | N43: 250.00 | O43: 250.00 | Q43: =SUM('Orçamento de Marketing de Canal'!$D43:$O43) -> 3,000.00
B44: Promoções | D44: 600.00 | E44: 600.00 | F44: 600.00 | G44: 600.00 | H44: 600.00 | I44: 600.00 | J44: 600.00 | K44: 600.00 | L44: 600.00 | M44: 600.00 | N44: 600.00 | O44: 600.00 | Q44: =SUM('Orçamento de Marketing de Canal'!$D44:$O44) -> 7,200.00
B45: Comissão/Descontos (% das Vendas a Varejo) | C45: 10.00% | D45: =D3*D41*$C$45 -> 0 | E45: 0 | F45: 12.5 | G45: 90 | H45: 80.4 | I45: 90 | J45: 90 | K45: 90 | L45: 60 | M45: 60 | N45: 60 | O45: 60 | Q45: =SUM('Orçamento de Marketing de Canal'!$D45:$O45) -> 692.90
B46: Total do Revendedor €(000) | D46: =SUM(D42:D45) -> 900.00 | E46: 900.00 | F46: 912.50 | G46: 990.00 | H46: 980.40 | I46: 990.00 | J46: 990.00 | K46: 990.00 | L46: 960.00 | M46: 960.00 | N46: 960.00 | O46: 960.00 | Q46: 11,492.90
B47: AQUISIÇÃO E RETENÇÃO DE CLIENTES (ARC)
B48: Recursos Humanos | D48: 50 | E48: 50 | F48: 50 | G48: 50 | H48: 50 | I48: 50 | J48: 50 | K48: 50 | L48: 50 | M48: 50 | N48: 50 | O48: 50 | Q48: =SUM('Orçamento de Marketing de Canal'!$D48:$O48) -> 600.00
B49: Comunicações | D49: 250.00 | E49: 250.00 | F49: 250.00 | G49: 250.00 | H49: 250.00 | I49: 250.00 | J49: 250.00 | K49: 250.00 | L49: 250.00 | M49: 250.00 | N49: 250.00 | O49: 250.00 | Q49: =SUM('Orçamento de Marketing de Canal'!$D49:$O49) -> 3,000.00
B50: Promoções/Cupons | D50: 600 | E50: 600 | F50: 600 | G50: 600 | H50: 600 | I50: 600 | J50: 600 | K50: 600 | L50: 600 | M50: 600 | N50: 600 | O50: 600 | Q50: =SUM('Orçamento de Marketing de Canal'!$D50:$O50) -> 7,200.00
B51: Total ARC R$(000) | D51: =SUM(D48:D50) -> 900.00 | E51: 900.00 | F51: 900.00 | G51: 900.00 | H51: 900.00 | I51: 900.00 | J51: 900.00 | K51: 900.00 | L51: 900.00 | M51: 900.00 | N51: 900.00 | O51: 900.00 | Q51: 10,800.00
B52: OUTRAS DESPESAS
B53: Viagem | D53: 50 | E53: 50 | F53: 50 | G53: 50 | H53: 50 | I53: 50 | J53: 50 | K53: 50 | L53: 50 | M53: 50 | N53: 50 | O53: 50 | Q53: =SUM('Orçamento de Marketing de Canal'!$D53:$O53) -> 600.00
B54: Infraestrutura (computador, telefone, etc.) | D54: 250.00 | E54: 250.00 | F54: 250.00 | G54: 250.00 | H54: 250.00 | I54: 250.00 | J54: 250.00 | K54: 250.00 | L54: 250.00 | M54: 250.00 | N54: 250.00 | O54: 250.00 | Q54: =SUM('Orçamento de Marketing de Canal'!$D54:$O54) -> 3,000.00
B55: Suporte de Canal | D55: 600 | E55: 600 | F55: 600 | G55: 600 | H55: 600 | I55: 600 | J55: 600 | K55: 600 | L55: 600 | M55: 600 | N55: 600 | O55: 600 | Q55: =SUM('Orçamento de Marketing de Canal'!$D55:$O55) -> 7,200.00
B56: Total de Outras Despesas R$(000) | D56: =SUM(D53:D55) -> 900.00 | E56: 900.00 | F56: 900.00 | G56: 900.00 | H56: 900.00 | I56: 900.00 | J56: 900.00 | K56: 900.00 | L56: 900.00 | M56: 900.00 | N56: 900.00 | O56: 900.00 | Q56: 10,800.00
B58: ORÇAMENTO DE MARKETING TOTAL: | D58: =SUM(D8,D27,D34,D40,D46,D51,D56) -> 6,379.75 | E58: 5,811.05 | F58: 5,859.94 | G58: 5,928.55 | H58: 5,942.55 | I58: 5,962.19 | J58: 6,003.40 | K58: 6,042.64 | L58: 6,058.80 | M58: 6,028.80 | N58: 6,083.80 | O58: 6,028.80 | Q58: =SUM(Q8,Q27,Q34,Q40,Q46,Q51,Q56) -> 72,130.26
